fUSD/lending_fUSD_20250309
["ID","MTS","AMOUNT","RATE_DAILY","PERIOD"]
[355740933,1741524058939,-1883.92885183,0.0004,120]
[355740934,1741524058965,-6446.25009524,0.0004,120]
[355740935,1741524058993,-1519.0,0.0004,60]
[355740936,1741524059019,-2838.2204689,0.0004,30]
[355740937,1741524059045,-32060.36621237,0.0004,120]
[355740938,1741524059071,-2565.83,0.0004,120]
[355740939,1741524059098,-1094.38062242,0.0004048,30]
[355740940,1741524059125,-834.0,0.00040746,60]
[355740941,1741524059151,-2156.48739,0.00040888,30]
[355740942,1741524059179,-4900.8,0.00040938,117]
[355740943,1741524059207,-200000.0,0.00041,41]
[355740944,1741524059233,-20268.69929605,0.00041,30]
[355740945,1741524059259,-950.0,0.00041,120]
[355740946,1741524059285,-287.38,0.00041,120]
[355740947,1741524059310,-2056.17,0.00041,120]
[355740948,1741524059336,-892.08314057,0.00041,30]
[355740949,1741524059365,-2229.0987928,0.00041046,40]
[355740950,1741524059390,-1714.60703088,0.00041086,35]
[355740951,1741524059416,-2156.48739,0.00041088,30]
[355740952,1741524059441,-500.0,0.00041095,120]
[355740953,1741524059466,-500.0,0.00041095,120]
[355740954,1741524059491,-500.0,0.00041095,120]
[355740955,1741524059517,-500.0,0.00041095,120]
[355740956,1741524059542,-500.0,0.00041095,120]
[355740957,1741524059568,-370.87269662,0.00041095,120]
[355740958,1741524059596,-200.0,0.00041096,120]
[355740959,1741524059624,-164.15,0.000411,120]
[355740960,1741524059651,-191.51936244,0.000411,120]
[355740961,1741524059679,-191.51,0.000411,120]
[355740962,1741524059704,-595.50083707,0.000411,120]
[355740963,1741524059732,-595.50083707,0.000411,120]
[355740964,1741524059758,-595.50083707,0.000411,120]
[355740965,1741524059784,-595.50083707,0.000411,120]
[355740966,1741524059809,-595.50083707,0.000411,120]
[355740967,1741524059835,-595.50083707,0.000411,120]
[355740968,1741524059863,-595.50083707,0.000411,120]
[355740969,1741524059889,-595.50083707,0.000411,120]
[355740970,1741524059916,-595.50083707,0.000411,120]
[355740971,1741524059943,-595.50083707,0.000411,120]
[355740972,1741524059968,-595.50083707,0.000411,120]
[355740973,1741524059994,-595.50083707,0.000411,120]
[355740974,1741524060020,-595.50083707,0.000411,120]
[355740975,1741524060048,-595.50083707,0.000411,120]
[355740976,1741524060075,-595.50083707,0.000411,120]
[355740977,1741524060101,-595.50083707,0.000411,120]
[355740978,1741524060128,-595.50083707,0.000411,120]
[355740979,1741524060155,-595.50083707,0.000411,120]
[355740980,1741524060180,-595.50083707,0.000411,120]
[355740981,1741524060209,-595.5,0.000411,120]
[355740982,1741524060237,-1389.50195317,0.000411,120]
[355740983,1741524060265,-1389.50195317,0.000411,120]
[355740984,1741524060294,-1389.50195317,0.000411,120]
[355740985,1741524060320,-1389.50195317,0.000411,120]
[355740986,1741524060349,-1389.50195317,0.000411,120]
[355740987,1741524060377,-1389.50195317,0.000411,120]
[355740988,1741524060403,-1389.50195317,0.000411,120]
[355740989,1741524060430,-1389.50195317,0.000411,120]
[355740990,1741524060457,-1389.50195317,0.000411,120]
[355740991,1741524060485,-1389.50195317,0.000411,120]
[355740992,1741524060511,-1389.50195317,0.000411,120]
[355740993,1741524060538,-1389.50195317,0.000411,120]
[355740994,1741524060564,-1389.50195317,0.000411,120]
[355740995,1741524060590,-1389.50195317,0.000411,120]
[355740996,1741524060622,-1389.50195317,0.000411,120]
[355740997,1741524060649,-1389.50195317,0.000411,120]
[355740998,1741524060676,-1389.50195317,0.000411,120]
[355740999,1741524060703,-1389.50195317,0.000411,120]
[355741000,1741524060729,-1389.50195317,0.000411,120]
[355741001,1741524060756,-1389.5,0.000411,120]
[355741002,1741524060784,-492.00244158,0.000411,120]
[355741003,1741524060810,-492.00244158,0.000411,120]
[355741004,1741524060837,-492.00244158,0.000411,120]
[355741005,1741524060867,-492.00244158,0.000411,120]
[355741006,1741524060895,-492.00244158,0.000411,120]
[355741007,1741524060921,-492.00244158,0.000411,120]
[355741008,1741524060948,-492.00244158,0.000411,120]
[355741009,1741524060976,-492.00244158,0.000411,120]
[355741010,1741524061003,-492.00244158,0.000411,120]
[355741011,1741524061029,-492.00244158,0.000411,120]
[355741012,1741524061055,-492.00244158,0.000411,120]
[355741013,1741524061081,-492.00244158,0.000411,120]
[355741014,1741524061108,-492.00244158,0.000411,120]
[355741015,1741524061133,-492.00244158,0.000411,120]
[355741016,1741524061158,-492.00244158,0.000411,120]
[355741017,1741524061183,-492.00244158,0.000411,120]
[355741018,1741524061207,-492.00244158,0.000411,120]
[355741019,1741524061232,-492.00244158,0.000411,120]
[355741020,1741524061256,-492.00244158,0.000411,120]
[355741021,1741524061280,-492.0,0.000411,120]
[355741022,1741524061305,-1148.00569702,0.000411,120]
[355741023,1741524061330,-1148.00569702,0.000411,120]
[355741024,1741524061356,-1148.00569702,0.000411,120]
[355741025,1741524061382,-1148.00569702,0.000411,120]
[355741026,1741524061407,-1148.00569702,0.000411,120]
[355741027,1741524061432,-1148.00569702,0.000411,120]
[355741028,1741524061457,-1148.00569702,0.000411,120]
[355741029,1741524061483,-1148.00569702,0.000411,120]
[355741030,1741524061619,-1148.00569702,0.000411,120]
[355741031,1741524061651,-1148.00569702,0.000411,120]
[355741032,1741524061677,-1148.00569702,0.000411,120]
[355741033,1741524061706,-1148.00569702,0.000411,120]
[355741034,1741524061732,-1148.00569702,0.000411,120]
[355741035,1741524061758,-1148.00569702,0.000411,120]
[355741036,1741524061784,-1148.00569702,0.000411,120]
[355741037,1741524061811,-1148.00569702,0.000411,120]
[355741038,1741524061837,-1148.00569702,0.000411,120]
[355741039,1741524061863,-1148.00569702,0.000411,120]
[355741040,1741524061890,-1148.00569702,0.000411,120]
[355741041,1741524061916,-1148.0,0.000411,120]
[355741042,1741524061942,-2156.48739,0.00041288,30]
[355741043,1741524061968,-750.0,0.000414,120]
[355741044,1741524061993,-2156.48739,0.00041488,30]
[355741045,1741524062021,-150.0,0.00041547,120]
[355741046,1741524062048,-2156.48739,0.00041688,30]
[355741047,1741524062079,-200.0,0.00041824,120]
[355741048,1741524062106,-2156.48739,0.00041888,30]
[355741049,1741524062132,-801.93949821,0.00041999,120]
[355741050,1741524062160,-100000.0,0.00042,42]
[355741051,1741524062187,-1000.0,0.00042,120]
[355741052,1741524062213,-432.26289288,0.00042,120]
[355741053,1741524062240,-200.43492474,0.00042,60]
[355741054,1741524062265,-3031.84872647,0.00042,120]
[355741055,1741524062290,-442.32390275,0.00042,120]
[355741056,1741524062318,-17092.32204411,0.00042,120]
[355741057,1741524062347,-158.0,0.00042,120]
[355741058,1741524062374,-2156.48739,0.00042088,30]
[355741059,1741524062400,-2156.48739,0.00042288,30]
[355741060,1741524062425,-2156.48739,0.00042488,30]
[355741061,1741524062450,-200.0,0.00042551,120]
[355741062,1741524062475,-2156.48739,0.00042688,30]
[355741063,1741524062500,-172.77,0.0004274,91]
[355741064,1741524062526,-3109.42214945,0.000428,60]
[355741065,1741524062550,-20567.74180519,0.000428,120]
[355741066,1741524062576,-2156.48739,0.00042888,30]
[355741067,1741524062604,-5310.5,0.00042906,117]
[355741068,1741524062635,-100000.0,0.00043,43]
[355741069,1741524062662,-500.0,0.00043,120]
[355741070,1741524062689,-2000000.0,0.00043,120]
[355741071,1741524062714,-1000000.0,0.00043,120]
[355741072,1741524062739,-2815.00247086,0.00043,120]
[355741073,1741524062763,-2592.31198304,0.00043,120]
[355741074,1741524062788,-7581.39156123,0.00043,120]
[355741075,1741524062813,-2763.15617343,0.00043,120]
[355741076,1741524062838,-3767.85770366,0.00043,120]
[355741077,1741524062864,-2156.48739,0.00043088,30]
[355741078,1741524062894,-200.0,0.00043279,120]
[355741079,1741524062920,-2156.48739,0.00043288,30]
[355741080,1741524062946,-1127.87,0.00043362,120]
[355741081,1741524062971,-2156.48739,0.00043488,30]
[355741082,1741524062997,-56540.4635471,0.000435,120]
[355741083,1741524063024,-155319.04728,0.000435,120]
[355741084,1741524063051,-157.86577653,0.000435,120]
[355741085,1741524063078,-335.89707164,0.00043562,120]
[355741086,1741524063106,-2033.03944,0.00043668,30]
[355741087,1741524063133,-2156.48739,0.00043688,30]
[355741088,1741524063160,-309.38124867,0.000437,120]
[355741089,1741524063187,-2303.0,0.000439,60]
[355741090,1741524063213,-20000.0,0.000439,120]
[355741091,1741524063240,-1000.0,0.00043987,120]
[355741092,1741524063266,-595.33893309,0.00043998,120]
[355741093,1741524063294,-100000.0,0.00044,44]
[355741094,1741524063320,-10000.0,0.00044,120]
[355741095,1741524063350,-500.0,0.00044,120]
[355741096,1741524063379,-1727092.80614009,0.00044,120]
[355741097,1741524068809,-272907.19385991,0.00044,120]
[355741098,1741524068840,-2063.0,0.00044,120]
[355741099,1741524068876,-1000000.0,0.00044,120]
[355741100,1741524068905,-850.0,0.00044,120]
[355741101,1741524068934,-162.21911261,0.00044,60]
[355741102,1741524068963,-158.0,0.00044,120]
[355741103,1741524068992,-2835.22099097,0.00044,30]
[355741104,1741524069022,-516.789465,0.00044,57]
[355741105,1741524069056,-150.0,0.00044,30]
[355741106,1741524069085,-200.0,0.00044006,120]
[355741107,1741524069114,-2156.48739,0.00044088,30]
[355741108,1741524069142,-2156.48739,0.00044288,30]
[355741109,1741524069173,-23831.35532935,0.000443,120]
[355741110,1741524069205,-500.0,0.000444,120]
[355741111,1741524069233,-13915.66835078,0.000444,120]
[355741112,1741524069261,-646.22,0.000444,120]
[355741113,1741524069292,-70000.0,0.0004444,120]
[355741114,1741524069321,-97930.42883865,0.0004444,120]
[355741115,1741524069350,-376.82809453,0.0004444,30]
[355741116,1741524069378,-2156.48739,0.00044488,30]
[355741117,1741524069406,-961.93009958,0.000445,120]
[355741118,1741524069435,-2156.48739,0.00044688,30]
[355741119,1741524069462,-27679.35938319,0.000447,60]
[355741120,1741524069490,-200.0,0.00044734,120]
[355741121,1741524069518,-11005.0,0.0004475,120]
[355741122,1741524069547,-10000.00000099,0.000448,120]
[355741123,1741524069577,-426.38826033,0.000448,30]
[355741124,1741524069606,-1949.23809794,0.000448,30]
[355741125,1741524069638,-337.92284716,0.000448,30]
[355741126,1741524069667,-346.10325927,0.000448,30]
[355741127,1741524069696,-5070.21201593,0.000448,30]
[355741128,1741524069726,-1157.20346186,0.000448,30]
[355741129,1741524069754,-600608.26466643,0.000448,30]
[355741130,1741524069782,-35298.06172555,0.000448,30]
[355741131,1741524069813,-239725.54314435,0.000448,30]
[355741132,1741524069844,-159841.36903688,0.000448,30]
[355741133,1741524069874,-424.9751078,0.000448,30]
[355741134,1741524069904,-2433.27603887,0.000448,30]
[355741135,1741524069934,-70000.0,0.0004483,120]
[355741136,1741524069965,-5719.0,0.00044875,117]
[355741137,1741524069995,-5100.0,0.0004488,34]
[355741138,1741524070026,-2156.48739,0.00044888,30]
[355741139,1741524070057,-2210.29003443,0.00044898,62]
[355741140,1741524070086,-462724.20265783,0.0004493,30]
[355741141,1741524070115,-5858956.29916981,0.0004493,30]
[355741142,1741524073672,-500.0,0.00044,44]
[355741143,1741524073699,-961.72646981,0.00044,44]
[355741144,1741524073725,-500.0,0.00044,44]
[355741145,1741524073752,-141043.70083019,0.0004493,30]
[355741146,1741524073779,-70000.0,0.0004495,120]
[355741147,1741524073808,-100000.0,0.00045,45]
[355741148,1741524073835,-1000000.0,0.00045,120]
[355741149,1741524073863,-3000.0,0.00045,120]
[355741150,1741524073890,-30000.0,0.00045,48]
[355741151,1741524073918,-2000000.0,0.00045,120]
[355741152,1741524073945,-2000000.0,0.00045,120]
[355741153,1741524073972,-1000000.0,0.00045,120]
[355741154,1741524073999,-1000000.0,0.00045,120]
[355741155,1741524074025,-158.2,0.00045,85]
[355741156,1741524074052,-298.3071764,0.00045,68]
[355741157,1741524074080,-2179.77624233,0.00045,120]
[355741158,1741524074106,-1171.21266778,0.00045,30]
[355741159,1741524074133,-1150.5543192,0.00045,60]
[355741160,1741524074159,-850.02288404,0.00045,120]
[355741161,1741524074186,-15000.0,0.00045,120]
[355741162,1741524074215,-10000.0,0.00045,120]
[355741163,1741524074241,-20000.0,0.00045,120]
[355741164,1741524074267,-10000.0,0.00045,120]
[355741165,1741524074294,-10000.0,0.00045,120]
[355741166,1741524074320,-15000.0,0.00045,120]
[355741167,1741524074348,-10000.0,0.00045,120]
[355741168,1741524074376,-151.0,0.00045,120]
[355741169,1741524074402,-64696.36756199,0.00045,120]
[355741170,1741524074429,-1361.97227756,0.00045,120]
[355741171,1741524074456,-5000.0,0.00045,120]
[355741172,1741524074484,-862.32,0.00045,120]
[355741173,1741524074511,-151.0,0.00045,120]
[355741174,1741524074538,-7617.98515773,0.00045,120]
[355741175,1741524074564,-1000.0,0.00045,30]
[355741176,1741524074595,-1012.8704,0.00045,30]
[355741177,1741524074623,-5992.43551145,0.00045083,120]
[355741178,1741524074650,-2616.34942595,0.00045086,120]
[355741179,1741524074676,-2156.48739,0.00045088,30]
[355741180,1741524074704,-4810.9561306,0.00045089,120]
[355741181,1741524074733,-4262.26162173,0.00045097,120]
[355741182,1741524074761,-392.57095278,0.00045098,120]
[355741183,1741524074788,-1364.63648254,0.00045098,120]
[355741184,1741524074814,-11653.26321611,0.000451,120]
[355741185,1741524074841,-492.301656,0.000451,120]
[355741186,1741524074869,-246.15082799,0.00045107,120]
[355741187,1741524074897,-200.0,0.00045109,120]
[355741188,1741524074926,-146619.56023745,0.00045112,120]
[355741189,1741524074954,-8095.51420952,0.00045112,120]
[355741190,1741524074981,-1364.63648254,0.00045116,120]
[355741191,1741524075009,-2134.59396233,0.00045117,120]
[355741192,1741524075038,-4770.43262982,0.0004512,120]
[355741193,1741524075066,-200.0,0.00045123,120]
[355741194,1741524075096,-146619.56023745,0.00045132,120]
[355741195,1741524075126,-37056.10327922,0.00045136,120]
[355741196,1741524075153,-11653.26321611,0.00045138,120]
[355741197,1741524075183,-2055.16972569,0.00045141,120]
[355741198,1741524075211,-734.74465583,0.00045141,120]
[355741199,1741524075239,-392.57095278,0.00045143,120]
[355741200,1741524075268,-1128.80067693,0.0004515,120]
[355741201,1741524075296,-37056.10327922,0.00045151,120]
[355741202,1741524075323,-4770.43262982,0.00045151,120]
[355741203,1741524075351,-11395.28191704,0.00045153,120]
[355741204,1741524075377,-9369.81108973,0.00045156,120]
[355741205,1741524075404,-4262.26162173,0.00045157,120]
[355741206,1741524075432,-285.51181794,0.00045161,120]
[355741207,1741524075459,-2647.80901151,0.00045181,120]
[355741208,1741524075485,-4278.12347893,0.00045184,120]
[355741209,1741524075511,-2647.80901151,0.00045184,120]
[355741210,1741524075536,-11395.28191704,0.00045188,120]
[355741211,1741524075563,-8095.51420952,0.00045193,120]
[355741212,1741524075588,-2134.59396233,0.00045199,120]
[355741213,1741524075616,-145660.30991321,0.000452,30]
[355741214,1741524075643,-196058.65766449,0.000452,30]
[355741215,1741524075672,-6594.84026204,0.00045206,120]
[355741216,1741524075701,-8095.51420952,0.00045209,120]
[355741217,1741524075731,-2055.16972569,0.00045209,120]
[355741218,1741524075761,-200.0,0.0004521,120]
[355741219,1741524075790,-4384.64461096,0.00045217,120]
[355741220,1741524075818,-245.97301121,0.00045217,120]
[355741221,1741524075845,-4810.9561306,0.00045219,120]
[355741222,1741524075874,-1128.80067693,0.0004522,120]
[355741223,1741524075901,-4810.9561306,0.00045221,120]
[355741224,1741524075929,-9369.81108973,0.00045223,120]
[355741225,1741524075956,-1364.63648254,0.00045233,120]
[355741226,1741524075984,-6594.84026204,0.0004524,120]
[355741227,1741524076011,-4384.64461096,0.0004524,120]
[355741228,1741524076041,-5992.43551145,0.00045243,120]
[355741229,1741524076070,-9369.81108973,0.00045247,120]
[355741230,1741524076099,-4278.12347893,0.00045249,120]
[355741231,1741524076129,-200.0,0.0004525,120]
[355741232,1741524076318,-285.51181794,0.00045253,120]
[355741233,1741524076345,-200.0,0.00045256,120]
[355741234,1741524076372,-2055.16972569,0.00045258,120]
[355741235,1741524076398,-4262.26162173,0.0004526,120]
[355741236,1741524076424,-2134.59396233,0.00045261,120]
[355741237,1741524076451,-1364.63648254,0.00045262,120]
[355741238,1741524076477,-734.74465583,0.00045266,120]
[355741239,1741524076503,-8095.51420952,0.00045267,120]
[355741240,1741524076528,-4262.26162173,0.00045267,120]
[355741241,1741524076554,-246.15082799,0.00045271,120]
[355741242,1741524076581,-2616.34942595,0.00045272,120]
[355741243,1741524076608,-11395.28191704,0.00045272,120]
[355741244,1741524076639,-2616.34942595,0.00045277,120]
[355741245,1741524076667,-11395.28191704,0.00045278,120]
[355741246,1741524076698,-246.15082799,0.00045284,120]
[355741247,1741524076725,-2156.48739,0.00045288,30]
[355741248,1741524076753,-9369.81108973,0.00045288,120]
[355741249,1741524076781,-245.97301121,0.0004529,120]
[355741250,1741524076809,-200.0,0.00045291,120]
[355741251,1741524076837,-2616.34942595,0.00045293,120]
[355741252,1741524076866,-1128.80067693,0.000453,120]
[355741253,1741524076894,-246.15082799,0.00045301,120]
[355741254,1741524076921,-245.97301121,0.00045303,120]
[355741255,1741524076948,-6594.84026204,0.00045306,120]
[355741256,1741524076976,-392.57095278,0.0004531,120]
[355741257,1741524077003,-492.301656,0.00045311,120]
[355741258,1741524077030,-2134.59396233,0.00045312,120]
[355741259,1741524077058,-5992.43551145,0.00045313,120]
[355741260,1741524077085,-285.51181794,0.00045315,120]
[355741261,1741524077116,-146619.56023745,0.00045318,120]
[355741262,1741524077142,-2647.80901151,0.00045324,120]
[355741263,1741524077170,-492.301656,0.00045326,120]
[355741264,1741524077198,-50000.0,0.0004533,120]
[355741265,1741524077225,-4278.12347893,0.00045331,120]
[355741266,1741524077252,-734.74465583,0.00045333,120]
[355741267,1741524077279,-734.74465583,0.00045334,120]
[355741268,1741524077307,-4278.12347893,0.00045342,120]
[355741269,1741524077336,-2055.16972569,0.00045348,120]
[355741270,1741524077363,-4384.64461096,0.00045351,120]
[355741271,1741524077390,-6594.84026204,0.00045353,120]
[355741272,1741524077417,-285.51181794,0.00045355,120]
[355741273,1741524077444,-20478.79351669,0.00045356,120]
[355741274,1741524077472,-37056.10327922,0.00045364,120]
[355741275,1741524077499,-2647.80901151,0.00045365,120]
[355741276,1741524077526,-5992.43551145,0.0004537,120]
[355741277,1741524077552,-245.97301121,0.00045376,120]
[355741278,1741524077579,-392.57095278,0.00045377,120]
[355741279,1741524077608,-146619.56023745,0.00045377,120]
[355741280,1741524077640,-4384.64461096,0.00045378,120]
[355741281,1741524077667,-11653.26321611,0.0004538,120]
[355741282,1741524077694,-4770.43262982,0.0004538,120]
[355741283,1741524077721,-4770.43262982,0.00045381,120]
[355741284,1741524077751,-19252.31149224,0.00045389,120]
[355741285,1741524088216,-152.1414762,0.00044,44]
[355741286,1741524088243,-150.0,0.00044,44]
[355741287,1741524088270,-150.0,0.00044,44]
[355741288,1741524088296,-205.65219262,0.00044,44]
[355741289,1741524088323,-500.0,0.00044,44]
[355741290,1741524088348,-500.0,0.00044,44]
[355741291,1741524088376,-500.0,0.00044,44]
[355741292,1741524088402,-775.00025531,0.00044,44]
[355741293,1741524088429,-427.01187806,0.00044209,120]
[355741294,1741524088456,-14767.05,0.00044223,120]
[355741295,1741524088484,-442.14,0.00044709,120]
[355741296,1741524088512,-17803.79178698,0.00045389,120]
[355741297,1741524088539,-150.0,0.00045389,30]
[355741298,1741524088582,-4810.9561306,0.00045391,120]
[355741299,1741524088614,-1128.80067693,0.00045391,120]
[355741300,1741524088648,-492.301656,0.00045394,120]
[355741301,1741524088677,-200.0,0.00045398,120]
[355741302,1741524088706,-11653.26321611,0.000454,120]
[355741303,1741524088735,-2005.0,0.000454,60]
[355741304,1741524088764,-8943186.89073119,0.0004542,120]
[355741305,1741524092314,-150.0,0.0004542,30]
[355741306,1741524092341,-8999850.0,0.0004542,120]
[355741307,1741524096013,-2076963.10926881,0.0004542,120]
[355741308,1741524096042,-200.0,0.00045462,120]
[355741309,1741524096070,-1000.0,0.00045487,120]
[355741310,1741524096098,-2156.48739,0.00045488,30]
[355741311,1741524096125,-754.75,0.00045488,120]
[355741312,1741524096153,-839.39137551,0.000455,120]
[355741313,1741524096182,-98035.26695185,0.000455,60]
[355741314,1741524096211,-2000000.0,0.000455,120]
[355741315,1741524096239,-2000000.0,0.000455,120]
[355741316,1741524096276,-167.1517326,0.000456,120]
[355741317,1741524096303,-2156.48739,0.00045688,30]
[355741318,1741524096330,-399.11541677,0.000457,120]
[355741319,1741524096357,-852.37851775,0.0004575,30]
[355741320,1741524096384,-10000.0,0.000458,120]
[355741321,1741524096411,-2156.48739,0.00045888,30]
[355741322,1741524096439,-100000.0,0.00046,46]
[355741323,1741524096466,-1000.0,0.00046,30]
[355741324,1741524096492,-3049.74054687,0.00046,30]
[355741325,1741524096519,-499.7692802,0.00046,45]
[355741326,1741524096547,-2000000.0,0.00046,120]
[355741327,1741524096575,-699769.86473964,0.00046,120]
[355741328,1741524099776,-15023.14,0.000444,120]
[355741329,1741524099807,-300230.13526036,0.00046,120]
[355741330,1741524099836,-500.0,0.00046,120]
[355741331,1741524099864,-158.0,0.00046,120]
[355741332,1741524099895,-3453.94521679,0.00046,120]
[355741333,1741524099923,-4709.82212957,0.00046,120]
[355741334,1741524099950,-2156.48739,0.00046088,30]
[355741335,1741524099977,-200.0,0.00046189,120]
[355741336,1741524100005,-1000.0,0.00046198,90]
[355741337,1741524100040,-1000000.0,0.0004625,120]
[355741338,1741524100068,-2156.48739,0.00046288,30]
[355741339,1741524100098,-1001230.0,0.0004644,30]
[355741340,1741524100128,-2156.48739,0.00046488,30]
[355741341,1741524100156,-2000000.0,0.000465,120]
[355741342,1741524100184,-1000000.0,0.000465,120]
[355741343,1741524100212,-800.29,0.00046575,120]
[355741344,1741524100238,-800.29,0.00046575,120]
[355741345,1741524100266,-800.29,0.00046575,120]
[355741346,1741524100292,-800.29,0.00046575,120]
[355741347,1741524100318,-800.29,0.00046575,120]
[355741348,1741524100344,-800.29,0.00046575,120]
[355741349,1741524100373,-800.29,0.00046575,120]
[355741350,1741524100399,-800.29,0.00046575,120]
[355741351,1741524100424,-800.29,0.00046575,120]
[355741352,1741524100451,-800.29,0.00046575,120]
[355741353,1741524100476,-800.29,0.00046575,120]
[355741354,1741524100501,-800.29,0.00046575,120]
[355741355,1741524100527,-800.29,0.00046575,120]
[355741356,1741524100552,-800.29,0.00046575,120]
[355741357,1741524100578,-800.29,0.00046575,120]
[355741358,1741524100605,-800.29,0.00046575,120]
[355741359,1741524100633,-800.29,0.00046575,120]
[355741360,1741524100661,-800.29,0.00046575,120]
[355741361,1741524100689,-800.29,0.00046575,120]
[355741362,1741524100718,-800.29,0.00046575,120]
[355741363,1741524100745,-800.29,0.00046575,120]
[355741364,1741524100771,-800.29,0.00046575,120]
[355741365,1741524100799,-800.29,0.00046575,120]
[355741366,1741524100826,-800.32534521,0.00046575,120]
[355741367,1741524100855,-2000.0,0.00046575,120]
[355741368,1741524100884,-2000.0,0.00046588,120]
[355741369,1741524100912,-1000.0,0.000466,120]
[355741370,1741524100939,-2000.0,0.00046601,120]
[355741371,1741524100967,-2000.0,0.00046614,120]
[355741372,1741524100995,-2000.0,0.00046626,120]
[355741373,1741524101023,-2000.0,0.00046639,120]
[355741374,1741524101052,-5000.0,0.0004665,30]
[355741375,1741524101081,-2000.0,0.00046652,120]
[355741376,1741524101108,-2000.0,0.00046665,120]
[355741377,1741524101138,-2000.0,0.00046677,120]
[355741378,1741524101166,-2156.48739,0.00046688,30]
[355741379,1741524101193,-2000.0,0.0004669,120]
[355741380,1741524101219,-2000.0,0.00046703,120]
[355741381,1741524101246,-2000.0,0.00046716,120]
[355741382,1741524101273,-2000.0,0.00046728,120]
[355741383,1741524101302,-2000.0,0.00046741,120]
[355741384,1741524101330,-1000000.0,0.0004675,120]
[355741385,1741524101358,-2000.0,0.00046754,120]
[355741386,1741524101387,-2000.0,0.00046766,120]
[355741387,1741524101415,-2000.0,0.00046779,120]
[355741388,1741524101443,-2000.0,0.00046792,120]
[355741389,1741524101470,-3156.03439032,0.000468,90]
[355741390,1741524101498,-2000.0,0.00046805,120]
[355741391,1741524101525,-2000.0,0.00046817,120]
[355741392,1741524101554,-2000.0,0.0004683,120]
[355741393,1741524101583,-2000.0,0.00046843,120]
[355741394,1741524101610,-6126.0,0.00046844,117]
[355741395,1741524101643,-2000.0,0.00046856,120]
[355741396,1741524101671,-2000.0,0.00046868,120]
[355741397,1741524101700,-2000.0,0.00046881,120]
[355741398,1741524101729,-1000.0,0.00046887,120]
[355741399,1741524101757,-2156.48739,0.00046888,30]
[355741400,1741524101785,-2000.0,0.00046894,120]
[355741401,1741524101814,-2000.0,0.00046907,120]
[355741402,1741524101841,-200.0,0.00046917,120]
[355741403,1741524101869,-2000.0,0.00046919,120]
[355741404,1741524101897,-2000.0,0.00046932,120]
[355741405,1741524101924,-2000.0,0.00046945,120]
[355741406,1741524101953,-2000.0,0.00046958,120]
[355741407,1741524101980,-2000.0,0.0004697,120]
[355741408,1741524102008,-5000.0,0.0004698,30]
[355741409,1741524102233,-2000.0,0.00046983,120]
[355741410,1741524102261,-2000.0,0.00046996,120]
[355741411,1741524102292,-100000.0,0.00047,47]
[355741412,1741524102320,-500.0,0.00047,120]
[355741413,1741524102348,-1000000.0,0.00047,120]
[355741414,1741524102377,-1453523.49070775,0.00047,120]
[355741415,1741524109980,-1393898.97743803,0.000459,30]
[355741416,1741524110008,-442.53,0.0004648,120]
[355741417,1741524110036,-150.0,0.0004697,30]
[355741418,1741524110063,-546476.50929225,0.00047,120]
[355741419,1741524110090,-750.0,0.00047,120]
[355741420,1741524110118,-152.0,0.00047,90]
[355741421,1741524110146,-2000.0,0.00047009,120]
[355741422,1741524110175,-2000.0,0.00047021,120]
[355741423,1741524110202,-2000.0,0.00047034,120]
[355741424,1741524110229,-2000.0,0.00047047,120]
[355741425,1741524110256,-2000.0,0.0004706,120]
[355741426,1741524110284,-2000.0,0.00047072,120]
[355741427,1741524110311,-2000.0,0.00047085,120]
[355741428,1741524110339,-2000.0,0.00047098,120]
[355741429,1741524110367,-2000.0,0.00047111,120]
[355741430,1741524110396,-3704.89209747,0.00047123,120]
[355741431,1741524110425,-2000000.0,0.0004725,120]
[355741432,1741524110453,-5000.0,0.0004744,30]